[Event "Early-Titled-Tuesday-Blitz-April-16-2024"]
[Site "Chess.com"]
[Date "2024.04.16"]
[Round "7"]
[White "romulocardoso"]
[Black "JACK_BAU3R"]
[Result "1-0"]
[WhiteElo "2309"]
[BlackElo "1984"]
[TimeControl "180+1"]
[EndTime "9:17:57 PDT"]
[Termination "romulocardoso won by resignation"]

1. e4 {[%clk 0:03:00.9]} 1... c5 {[%clk 0:02:45.3]} 2. Nf3 {[%clk 0:02:59.8]}
2... d6 {[%clk 0:02:44.3]} 3. d4 {[%clk 0:03:00.4]} 3... cxd4 {[%clk 0:02:45.2]}
4. Nxd4 {[%clk 0:03:01.3]} 4... Nf6 {[%clk 0:02:43.3]} 5. Nc3 {[%clk 0:03:01.8]}
5... g6 {[%clk 0:02:38.1]} 6. f3 {[%clk 0:03:02]} 6... Bg7 {[%clk 0:02:38.1]} 7.
Be3 {[%clk 0:03:02.6]} 7... Nc6 {[%clk 0:02:38.4]} 8. Bc4 {[%clk 0:03:03.2]}
8... O-O {[%clk 0:02:33.6]} 9. Qd2 {[%clk 0:03:03.5]} 9... Na5 {[%clk
0:02:33.4]} 10. Bb3 {[%clk 0:03:03.2]} 10... a6 {[%clk 0:02:28.6]} 11. O-O-O
{[%clk 0:03:03]} 11... Nxb3+ {[%clk 0:01:59.5]} 12. Nxb3 {[%clk 0:03:03.9]}
12... b5 {[%clk 0:01:56.5]} 13. Kb1 {[%clk 0:03:04.1]} 13... Bb7 {[%clk
0:01:55.2]} 14. g4 {[%clk 0:03:04.6]} 14... Rc8 {[%clk 0:01:50.6]} 15. h4 {[%clk
0:03:05.2]} 15... h5 {[%clk 0:01:50.3]} 16. gxh5 {[%clk 0:03:05.2]} 16... Nxh5
{[%clk 0:01:50.4]} 17. Bh6 {[%clk 0:03:05.4]} 17... Bxh6 {[%clk 0:01:50.3]} 18.
Qxh6 {[%clk 0:03:05.5]} 18... Rxc3 {[%clk 0:01:50.9]} 19. bxc3 {[%clk
0:03:06.4]} 19... a5 {[%clk 0:01:26.3]} 20. Rhg1 {[%clk 0:03:06.8]} 20... Nf6
{[%clk 0:01:26.7]} 21. Rxg6+ {[%clk 0:03:06.5]} 21... fxg6 {[%clk 0:01:27.6]}
22. Qxg6+ {[%clk 0:03:07.4]} 22... Kh8 {[%clk 0:01:28.2]} 23. Qh6+ {[%clk
0:03:04.2]} 23... Nh7 {[%clk 0:01:26.3]} 24. Nd4 {[%clk 0:03:04.5]} 24... Rf6
{[%clk 0:01:20]} 25. Qh5 {[%clk 0:03:04.5]} 25... e6 {[%clk 0:01:01]} 26. Rg1
{[%clk 0:03:00.6]} 26... b4 {[%clk 0:00:47.3]} 27. Qg4 {[%clk 0:03:00.4]} 27...
Qf8 {[%clk 0:00:21.8]} 28. Nxe6 {[%clk 0:03:00.4]} 28... Qf7 {[%clk 0:00:21.9]}
29. Nd8 {[%clk 0:03:00.6]} 1-0

[Event "Early-Titled-Tuesday-Blitz-April-16-2024"]
[Site "Chess.com"]
[Date "2024.04.16"]
[Round "7"]
[White "jodarmarlon1985"]
[Black "maurovargas01"]
[Result "1-0"]
[WhiteElo "2286"]
[BlackElo "1899"]
[TimeControl "180+1"]
[EndTime "9:18:00 PDT"]
[Termination "jodarmarlon1985 won by resignation"]

1. e4 {[%clk 0:03:00.9]} 1... c5 {[%clk 0:02:57.4]} 2. Nf3 {[%clk 0:03:00.1]}
2... d6 {[%clk 0:02:57.1]} 3. d4 {[%clk 0:03:00.5]} 3... cxd4 {[%clk 0:02:56.9]}
4. Nxd4 {[%clk 0:03:01.4]} 4... Nf6 {[%clk 0:02:57.6]} 5. Nc3 {[%clk 0:03:02]}
5... g6 {[%clk 0:02:56.7]} 6. Be3 {[%clk 0:03:01.3]} 6... Bg7 {[%clk 0:02:57]}
7. f3 {[%clk 0:03:02.1]} 7... Nc6 {[%clk 0:02:51.8]} 8. Qd2 {[%clk 0:03:02]}
8... Bd7 {[%clk 0:02:51.7]} 9. Bc4 {[%clk 0:03:01.8]} 9... O-O {[%clk
0:02:48.9]} 10. O-O-O {[%clk 0:03:01.1]} 10... Rb8 {[%clk 0:02:46.9]} 11. Bb3
{[%clk 0:02:59.9]} 11... a6 {[%clk 0:02:44.2]} 12. h4 {[%clk 0:02:59]} 12... h5
{[%clk 0:02:42.3]} 13. Kb1 {[%clk 0:02:57.4]} 13... b5 {[%clk 0:02:38.9]} 14.
Nxc6 {[%clk 0:02:56.9]} 14... Bxc6 {[%clk 0:02:36.5]} 15. Bh6 {[%clk 0:02:57.8]}
15... a5 {[%clk 0:02:17.7]} 16. Bxg7 {[%clk 0:02:51.2]} 16... Kxg7 {[%clk
0:02:17.4]} 17. g4 {[%clk 0:02:40.4]} 17... a4 {[%clk 0:02:03.5]} 18. Bd5 {[%clk
0:02:39.4]} 18... Nxd5 {[%clk 0:02:02.3]} 19. exd5 {[%clk 0:02:35.5]} 19... Bd7
{[%clk 0:01:59.9]} 20. gxh5 {[%clk 0:02:33.7]} 20... b4 {[%clk 0:01:51.1]} 21.
Ne4 {[%clk 0:02:16.9]} 21... Bf5 {[%clk 0:01:45.9]} 22. hxg6 {[%clk 0:02:15.2]}
22... fxg6 {[%clk 0:01:42]} 23. h5 {[%clk 0:02:14.7]} 23... Rh8 {[%clk 0:01:38]}
24. Qd4+ {[%clk 0:02:09.4]} 24... Kf7 {[%clk 0:01:14.8]} 25. hxg6+ {[%clk
0:02:06.6]} 25... Bxg6 {[%clk 0:01:12.3]} 26. Ng5+ {[%clk 0:02:06]} 26... Ke8
{[%clk 0:01:04.6]} 27. Rxh8+ {[%clk 0:02:04.9]} 1-0

[Event "Early-Titled-Tuesday-Blitz-April-16-2024"]
[Site "Chess.com"]
[Date "2024.04.16"]
[Round "7"]
[White "IsmaelAmadorGarcia"]
[Black "littlepinkyboy"]
[Result "0-1"]
[WhiteElo "2339"]
[BlackElo "2662"]
[TimeControl "180+1"]
[EndTime "9:18:02 PDT"]
[Termination "littlepinkyboy won by resignation"]

1. e4 {[%clk 0:03:00.9]} 1... c5 {[%clk 0:02:59.9]} 2. Nf3 {[%clk 0:03:01]} 2...
Nc6 {[%clk 0:02:57.5]} 3. Bb5 {[%clk 0:02:58.7]} 3... d6 {[%clk 0:02:57.4]} 4.
O-O {[%clk 0:02:58.5]} 4... Bd7 {[%clk 0:02:58]} 5. Re1 {[%clk 0:02:57.7]} 5...
e5 {[%clk 0:02:58.6]} 6. a4 {[%clk 0:02:54.7]} 6... a6 {[%clk 0:02:59]} 7. Bc4
{[%clk 0:02:54.9]} 7... Be7 {[%clk 0:02:57]} 8. h3 {[%clk 0:02:53.3]} 8... Nf6
{[%clk 0:02:57.6]} 9. Nc3 {[%clk 0:02:53]} 9... O-O {[%clk 0:02:57.9]} 10. d3
{[%clk 0:02:53]} 10... Rb8 {[%clk 0:02:58.2]} 11. Bg5 {[%clk 0:02:52.3]} 11...
h6 {[%clk 0:02:57.5]} 12. Bxf6 {[%clk 0:02:52.4]} 12... Bxf6 {[%clk 0:02:58.4]}
13. Nd2 {[%clk 0:02:46.6]} 13... Be6 {[%clk 0:02:58.3]} 14. Bxe6 {[%clk
0:02:44.1]} 14... fxe6 {[%clk 0:02:59.2]} 15. Qg4 {[%clk 0:02:43.5]} 15... Qe7
{[%clk 0:02:58.3]} 16. a5 {[%clk 0:02:38.1]} 16... Nd4 {[%clk 0:02:56.4]} 17.
Rac1 {[%clk 0:02:35.2]} 17... Bg5 {[%clk 0:02:54.8]} 18. Red1 {[%clk 0:02:27.9]}
18... Rf4 {[%clk 0:02:53.4]} 19. Qh5 {[%clk 0:02:22.9]} 19... Rbf8 {[%clk
0:02:50]} 20. Rf1 {[%clk 0:01:39.2]} 20... Rh4 {[%clk 0:02:42.4]} 21. Qd1 {[%clk
0:01:38.1]} 21... Bxd2 {[%clk 0:02:38.5]} 22. Qxd2 {[%clk 0:01:38]} 22... Rxh3
{[%clk 0:02:37.9]} 23. Ne2 {[%clk 0:01:24.7]} 23... Qh4 {[%clk 0:02:22.2]} 24.
Ng3 {[%clk 0:01:21.5]} 24... Rh2 {[%clk 0:02:20.7]} 0-1

[Event "Early-Titled-Tuesday-Blitz-April-16-2024"]
[Site "Chess.com"]
[Date "2024.04.16"]
[Round "7"]
[White "MyDream003"]
[Black "Stanbad1"]
[Result "1-0"]
[WhiteElo "2801"]
[BlackElo "2579"]
[TimeControl "180+1"]
[EndTime "9:18:06 PDT"]
[Termination "MyDream003 won by resignation"]

1. e4 {[%clk 0:02:44.7]} 1... e6 {[%clk 0:02:59.3]} 2. d4 {[%clk 0:02:44.8]}
2... d5 {[%clk 0:02:59.4]} 3. e5 {[%clk 0:02:45.4]} 3... c5 {[%clk 0:02:59.2]}
4. c3 {[%clk 0:02:45.9]} 4... Nc6 {[%clk 0:02:59.9]} 5. Nf3 {[%clk 0:02:46.1]}
5... Bd7 {[%clk 0:03:00.6]} 6. Be2 {[%clk 0:02:45.6]} 6... Nge7 {[%clk 0:03:00]}
7. O-O {[%clk 0:02:45.8]} 7... cxd4 {[%clk 0:02:59.9]} 8. cxd4 {[%clk 0:02:46]}
8... Nf5 {[%clk 0:03:00.6]} 9. Nc3 {[%clk 0:02:46.1]} 9... Qb6 {[%clk 0:03:00]}
10. Na4 {[%clk 0:02:45.3]} 10... Qd8 {[%clk 0:02:59.4]} 11. Kh1 {[%clk
0:02:32.3]} 11... Rc8 {[%clk 0:02:56.9]} 12. a3 {[%clk 0:02:27.9]} 12... Na5
{[%clk 0:02:53.4]} 13. Nc5 {[%clk 0:02:22]} 13... Bc6 {[%clk 0:02:50.1]} 14. b3
{[%clk 0:02:09.5]} 14... b6 {[%clk 0:02:48.4]} 15. Nd3 {[%clk 0:02:10]} 15...
Qd7 {[%clk 0:02:40.7]} 16. Bd2 {[%clk 0:02:04.7]} 16... Nb7 {[%clk 0:02:22.8]}
17. Bb4 {[%clk 0:01:59.9]} 17... a5 {[%clk 0:02:16.1]} 18. Bxf8 {[%clk
0:01:59.5]} 18... Kxf8 {[%clk 0:02:14.7]} 19. a4 {[%clk 0:01:58.3]} 19... g6
{[%clk 0:02:14.1]} 20. Qd2 {[%clk 0:01:57.6]} 20... Kg7 {[%clk 0:02:12.7]} 21.
Qf4 {[%clk 0:01:57.9]} 21... Qe7 {[%clk 0:02:11.5]} 22. g4 {[%clk 0:01:55.7]}
22... Nh6 {[%clk 0:02:11.3]} 23. Rac1 {[%clk 0:01:50.8]} 23... Rhf8 {[%clk
0:02:08.8]} 24. Qf6+ {[%clk 0:01:38]} 24... Qxf6 {[%clk 0:02:07.1]} 25. exf6+
{[%clk 0:01:38.9]} 25... Kh8 {[%clk 0:02:05]} 26. Nde5 {[%clk 0:01:37.8]} 26...
Nd8 {[%clk 0:02:02.8]} 27. Rc3 {[%clk 0:01:25.3]} 27... Bb7 {[%clk 0:02:01.2]}
28. Rxc8 {[%clk 0:01:24.9]} 28... Bxc8 {[%clk 0:02:00.2]} 29. Rc1 {[%clk
0:01:25.7]} 29... Nb7 {[%clk 0:02:00.1]} 30. Rc6 {[%clk 0:01:24.8]} 30... Ng8
{[%clk 0:01:56.8]} 31. Rxc8 {[%clk 0:01:23.4]} 31... Nd8 {[%clk 0:01:51.6]} 32.
Rxd8 {[%clk 0:01:21.5]} 1-0

[Event "Early-Titled-Tuesday-Blitz-April-16-2024"]
[Site "Chess.com"]
[Date "2024.04.16"]
[Round "7"]
[White "BallottiLuca"]
[Black "HighLawView"]
[Result "1-0"]
[WhiteElo "2376"]
[BlackElo "2119"]
[TimeControl "180+1"]
[EndTime "9:18:12 PDT"]
[Termination "BallottiLuca won by resignation"]

1. d4 {[%clk 0:03:00.9]} 1... d5 {[%clk 0:02:57.4]} 2. c4 {[%clk 0:03:01.8]}
2... c6 {[%clk 0:02:55.1]} 3. Nc3 {[%clk 0:03:01.7]} 3... e5 {[%clk 0:02:53.9]}
4. e3 {[%clk 0:02:56.9]} 4... e4 {[%clk 0:02:52.6]} 5. Qb3 {[%clk 0:02:55.8]}
5... Nf6 {[%clk 0:02:44.2]} 6. Bd2 {[%clk 0:02:56]} 6... Bd6 {[%clk 0:02:36.7]}
7. cxd5 {[%clk 0:02:53.6]} 7... O-O {[%clk 0:02:21.3]} 8. Nge2 {[%clk
0:02:53.5]} 8... cxd5 {[%clk 0:02:14.2]} 9. Nxd5 {[%clk 0:02:48.7]} 9... Nbd7
{[%clk 0:02:10.7]} 10. a3 {[%clk 0:02:41.6]} 10... Nxd5 {[%clk 0:02:09.5]} 11.
Qxd5 {[%clk 0:02:42.5]} 11... Nf6 {[%clk 0:02:08.9]} 12. Qb3 {[%clk 0:02:39.5]}
12... a6 {[%clk 0:02:07.2]} 13. Nc3 {[%clk 0:02:37.2]} 13... Be6 {[%clk
0:02:01.6]} 14. Qd1 {[%clk 0:02:34.5]} 14... b5 {[%clk 0:01:54.9]} 15. Be2
{[%clk 0:02:34.3]} 15... b4 {[%clk 0:01:27]} 16. axb4 {[%clk 0:02:33.1]} 16...
Bxb4 {[%clk 0:01:27]} 17. Nxe4 {[%clk 0:02:23.6]} 17... Nxe4 {[%clk 0:01:16]}
18. Bxb4 {[%clk 0:02:23.2]} 18... Qf6 {[%clk 0:01:09.3]} 19. O-O {[%clk
0:02:20.4]} 19... Rfb8 {[%clk 0:01:05.2]} 20. Bc3 {[%clk 0:02:17.5]} 20... Ng5
{[%clk 0:01:01.7]} 21. d5 {[%clk 0:01:53.4]} 21... Rd8 {[%clk 0:00:57.7]} 22.
Bxf6 {[%clk 0:01:51.6]} 1-0

[Event "Early-Titled-Tuesday-Blitz-April-16-2024"]
[Site "Chess.com"]
[Date "2024.04.16"]
[Round "7"]
[White "Aminazinas"]
[Black "rionelG"]
[Result "1-0"]
[WhiteElo "2525"]
[BlackElo "2200"]
[TimeControl "180+1"]
[EndTime "9:18:15 PDT"]
[Termination "Aminazinas won by checkmate"]

1. e4 {[%clk 0:03:00.9]} 1... c5 {[%clk 0:02:59.6]} 2. Nc3 {[%clk 0:03:00.1]}
2... d6 {[%clk 0:02:58.9]} 3. f4 {[%clk 0:03:00.4]} 3... a6 {[%clk 0:02:58.2]}
4. a4 {[%clk 0:02:59.6]} 4... Nc6 {[%clk 0:02:58.1]} 5. Nf3 {[%clk 0:03:00]}
5... Bg4 {[%clk 0:02:54]} 6. Bc4 {[%clk 0:02:59.2]} 6... e6 {[%clk 0:02:54]} 7.
h3 {[%clk 0:02:58.7]} 7... Bxf3 {[%clk 0:02:53.5]} 8. Qxf3 {[%clk 0:02:58.8]}
8... Nf6 {[%clk 0:02:53.4]} 9. O-O {[%clk 0:02:58.2]} 9... Be7 {[%clk 0:02:53]}
10. d3 {[%clk 0:02:50.8]} 10... O-O {[%clk 0:02:51.8]} 11. g4 {[%clk 0:02:45.5]}
11... Nd4 {[%clk 0:02:50.9]} 12. Qf2 {[%clk 0:02:45]} 12... d5 {[%clk
0:02:50.7]} 13. Ba2 {[%clk 0:02:44.9]} 13... dxe4 {[%clk 0:02:50.3]} 14. dxe4
{[%clk 0:02:44.1]} 14... Qc7 {[%clk 0:02:45.4]} 15. Be3 {[%clk 0:02:31.1]} 15...
Rad8 {[%clk 0:02:39.9]} 16. Rad1 {[%clk 0:02:27.8]} 16... Qb6 {[%clk 0:02:36.7]}
17. Rb1 {[%clk 0:02:06.1]} 17... Nd7 {[%clk 0:02:30.7]} 18. g5 {[%clk
0:02:00.9]} 18... Nb8 {[%clk 0:02:28.5]} 19. f5 {[%clk 0:01:55.5]} 19... exf5
{[%clk 0:02:23.7]} 20. exf5 {[%clk 0:01:56.4]} 20... Bd6 {[%clk 0:02:18.7]} 21.
g6 {[%clk 0:01:52.2]} 21... Be5 {[%clk 0:01:43.6]} 22. Bxf7+ {[%clk 0:01:40]}
22... Kh8 {[%clk 0:01:41.7]} 23. Qh4 {[%clk 0:01:32.4]} 23... h6 {[%clk
0:01:28.8]} 24. Bxh6 {[%clk 0:01:27.5]} 24... Rxf7 {[%clk 0:01:28.6]} 25. Bg5+
{[%clk 0:01:25.8]} 25... Kg8 {[%clk 0:01:25.1]} 26. Qh7+ {[%clk 0:01:26]} 26...
Kf8 {[%clk 0:01:24.1]} 27. Qh8# {[%clk 0:01:26.9]} 1-0

[Event "Early-Titled-Tuesday-Blitz-April-16-2024"]
[Site "Chess.com"]
[Date "2024.04.16"]
[Round "7"]
[White "Zohid6"]
[Black "RandomNoob04"]
[Result "1-0"]
[WhiteElo "2940"]
[BlackElo "2662"]
[TimeControl "180+1"]
[EndTime "9:18:34 PDT"]
[Termination "Zohid6 won by resignation"]

1. e4 {[%clk 0:03:00.9]} 1... d5 {[%clk 0:03:00.5]} 2. exd5 {[%clk 0:03:00.7]}
2... Qxd5 {[%clk 0:03:01.4]} 3. Nc3 {[%clk 0:03:01.4]} 3... Qa5 {[%clk
0:03:02.1]} 4. d4 {[%clk 0:03:01.5]} 4... Nf6 {[%clk 0:03:02.7]} 5. Nf3 {[%clk
0:03:01.9]} 5... Bf5 {[%clk 0:03:02.7]} 6. Bc4 {[%clk 0:03:01.6]} 6... e6 {[%clk
0:03:03.2]} 7. O-O {[%clk 0:03:01.6]} 7... Bb4 {[%clk 0:03:03.5]} 8. Bd2 {[%clk
0:02:57.5]} 8... O-O {[%clk 0:03:04]} 9. a3 {[%clk 0:02:57.3]} 9... Bxc3 {[%clk
0:03:04.6]} 10. Bxc3 {[%clk 0:02:58.2]} 10... Qb6 {[%clk 0:03:04.7]} 11. Re1
{[%clk 0:02:53]} 11... Nc6 {[%clk 0:03:04]} 12. h3 {[%clk 0:02:46.2]} 12... Rad8
{[%clk 0:03:01.4]} 13. a4 {[%clk 0:02:26.2]} 13... a6 {[%clk 0:02:42.9]} 14. a5
{[%clk 0:02:25.2]} 14... Qa7 {[%clk 0:02:43.3]} 15. Ra4 {[%clk 0:02:25.4]} 15...
Be4 {[%clk 0:02:38.7]} 16. Bd3 {[%clk 0:02:25]} 16... Bxd3 {[%clk 0:02:17.6]}
17. Qxd3 {[%clk 0:02:23.7]} 17... Rd5 {[%clk 0:02:13.4]} 18. Bd2 {[%clk
0:02:13.8]} 18... Rfd8 {[%clk 0:02:10.9]} 19. c3 {[%clk 0:02:09.1]} 19... Rxa5
{[%clk 0:02:06.7]} 20. Rxa5 {[%clk 0:02:08.9]} 20... Nxa5 {[%clk 0:02:07.6]} 21.
Bg5 {[%clk 0:02:09.4]} 21... Qb6 {[%clk 0:01:56.8]} 22. Ne5 {[%clk 0:02:07.3]}
22... Nc6 {[%clk 0:01:23.3]} 23. Bxf6 {[%clk 0:02:06.9]} 23... gxf6 {[%clk
0:01:24]} 24. Ng4 {[%clk 0:01:57.4]} 24... f5 {[%clk 0:01:22.2]} 25. Nh6+ {[%clk
0:01:57.8]} 25... Kg7 {[%clk 0:01:19.6]} 26. Qg3+ {[%clk 0:01:58]} 26... Kxh6
{[%clk 0:01:09]} 27. Rxe6+ {[%clk 0:01:57.8]} 27... fxe6 {[%clk 0:01:01.5]} 28.
h4 {[%clk 0:01:58.1]} 28... Rg8 {[%clk 0:00:34]} 29. Qxg8 {[%clk 0:01:57.4]} 1-0

[Event "Early-Titled-Tuesday-Blitz-April-16-2024"]
[Site "Chess.com"]
[Date "2024.04.16"]
[Round "7"]
[White "jumpingknight20"]
[Black "jcibarra"]
[Result "0-1"]
[WhiteElo "2739"]
[BlackElo "2954"]
[TimeControl "180+1"]
[EndTime "9:18:46 PDT"]
[Termination "jcibarra won by resignation"]

1. e4 {[%clk 0:03:00.9]} 1... c5 {[%clk 0:02:59.9]} 2. c3 {[%clk 0:03:00.8]}
2... Nf6 {[%clk 0:02:59.8]} 3. e5 {[%clk 0:03:00.4]} 3... Nd5 {[%clk 0:03:00.5]}
4. d4 {[%clk 0:03:01]} 4... cxd4 {[%clk 0:03:01.3]} 5. cxd4 {[%clk 0:03:01.9]}
5... d6 {[%clk 0:03:00.9]} 6. Nf3 {[%clk 0:03:02.3]} 6... Nc6 {[%clk 0:03:01.3]}
7. Bc4 {[%clk 0:03:02.5]} 7... dxe5 {[%clk 0:03:01.2]} 8. dxe5 {[%clk
0:03:02.7]} 8... Be6 {[%clk 0:03:00.3]} 9. O-O {[%clk 0:02:50.5]} 9... g6 {[%clk
0:03:00.7]} 10. Re1 {[%clk 0:02:46]} 10... Bg7 {[%clk 0:03:00.7]} 11. Ng5 {[%clk
0:02:44]} 11... O-O {[%clk 0:02:52.8]} 12. Nxe6 {[%clk 0:02:41.3]} 12... fxe6
{[%clk 0:02:53.7]} 13. Nc3 {[%clk 0:02:29.4]} 13... Qb6 {[%clk 0:02:40.6]} 14.
Nxd5 {[%clk 0:02:09.5]} 14... Qxf2+ {[%clk 0:02:39]} 15. Kh1 {[%clk 0:02:09.9]}
15... exd5 {[%clk 0:02:39.4]} 16. Be3 {[%clk 0:01:44.4]} 16... Qxb2 {[%clk
0:02:27.7]} 17. Qxd5+ {[%clk 0:01:27.1]} 17... Kh8 {[%clk 0:02:27]} 18. Rab1
{[%clk 0:01:25.6]} 18... Qxe5 {[%clk 0:02:19.8]} 19. Rxb7 {[%clk 0:01:19.7]}
19... Na5 {[%clk 0:01:37.2]} 20. Rb5 {[%clk 0:01:12.1]} 20... Qc3 {[%clk
0:01:23.2]} 21. Bd2 {[%clk 0:00:56.2]} 21... Qxc4 {[%clk 0:01:23.1]} 22. Bxa5
{[%clk 0:00:49.5]} 22... Qf1+ {[%clk 0:01:19.6]} 0-1

[Event "Early-Titled-Tuesday-Blitz-April-16-2024"]
[Site "Chess.com"]
[Date "2024.04.16"]
[Round "7"]
[White "platy3"]
[Black "AradNazari"]
[Result "1-0"]
[WhiteElo "2911"]
[BlackElo "2704"]
[TimeControl "180+1"]
[EndTime "9:18:50 PDT"]
[Termination "platy3 won by resignation"]

1. e4 {[%clk 0:03:00.9]} 1... c5 {[%clk 0:02:59.7]} 2. Nf3 {[%clk 0:03:00.6]}
2... d6 {[%clk 0:03:00.1]} 3. d4 {[%clk 0:02:54.8]} 3... cxd4 {[%clk 0:03:00.7]}
4. Nxd4 {[%clk 0:02:55.6]} 4... Nf6 {[%clk 0:03:01.4]} 5. Nc3 {[%clk 0:02:56.4]}
5... a6 {[%clk 0:03:02]} 6. Bd3 {[%clk 0:02:56.1]} 6... g6 {[%clk 0:02:55]} 7.
f3 {[%clk 0:02:55.5]} 7... Bg7 {[%clk 0:02:18.9]} 8. Be3 {[%clk 0:02:54.2]} 8...
Nbd7 {[%clk 0:02:07.8]} 9. Qd2 {[%clk 0:02:53.8]} 9... b5 {[%clk 0:02:04.5]} 10.
O-O-O {[%clk 0:02:51.7]} 10... b4 {[%clk 0:01:39.4]} 11. Nd5 {[%clk 0:02:49.1]}
11... Nxd5 {[%clk 0:01:36.7]} 12. exd5 {[%clk 0:02:50]} 12... Qa5 {[%clk
0:01:36.3]} 13. Kb1 {[%clk 0:02:21.4]} 13... Ne5 {[%clk 0:01:21.3]} 14. Bh6
{[%clk 0:02:15.4]} 14... Bf6 {[%clk 0:01:04.3]} 15. Rhe1 {[%clk 0:02:01.1]}
15... Bb7 {[%clk 0:00:55.2]} 16. Nb3 {[%clk 0:01:55.3]} 16... Qxd5 {[%clk
0:00:51.2]} 17. Qxb4 {[%clk 0:01:55.5]} 17... a5 {[%clk 0:00:40.1]} 18. Bb5+
{[%clk 0:01:51]} 18... Kd8 {[%clk 0:00:21.2]} 19. Nxa5 {[%clk 0:01:45.1]} 19...
Nc6 {[%clk 0:00:10.4]} 1-0

[Event "Early-Titled-Tuesday-Blitz-April-16-2024"]
[Site "Chess.com"]
[Date "2024.04.16"]
[Round "7"]
[White "Kiborg95"]
[Black "SpeedofLight0"]
[Result "0-1"]
[WhiteElo "2856"]
[BlackElo "3077"]
[TimeControl "180+1"]
[EndTime "9:18:52 PDT"]
[Termination "SpeedofLight0 won by resignation"]

1. e4 {[%clk 0:03:00.9]} 1... Nc6 {[%clk 0:02:58]} 2. Nc3 {[%clk 0:03:00.2]}
2... Nf6 {[%clk 0:02:55.2]} 3. Nf3 {[%clk 0:02:52]} 3... d5 {[%clk 0:02:54.2]}
4. e5 {[%clk 0:02:46.8]} 4... Ne4 {[%clk 0:02:54]} 5. Ne2 {[%clk 0:02:43.7]}
5... f6 {[%clk 0:02:32.1]} 6. d3 {[%clk 0:02:39.9]} 6... Nc5 {[%clk 0:02:31.8]}
7. d4 {[%clk 0:02:40.1]} 7... Ne4 {[%clk 0:02:26.5]} 8. Nf4 {[%clk 0:02:30.7]}
8... fxe5 {[%clk 0:02:22.3]} 9. dxe5 {[%clk 0:02:31.1]} 9... e6 {[%clk
0:02:22.5]} 10. Bb5 {[%clk 0:02:26]} 10... Bc5 {[%clk 0:02:17.2]} 11. Nd3 {[%clk
0:01:57]} 11... Bb6 {[%clk 0:02:16.5]} 12. Qe2 {[%clk 0:01:40.2]} 12... O-O
{[%clk 0:02:14.7]} 13. Bxc6 {[%clk 0:01:26.2]} 13... bxc6 {[%clk 0:02:13.9]} 14.
Be3 {[%clk 0:01:25.8]} 14... c5 {[%clk 0:02:13.6]} 15. c4 {[%clk 0:01:05.7]}
15... Ba6 {[%clk 0:01:12.8]} 16. b3 {[%clk 0:01:05.5]} 16... Ba5+ {[%clk
0:01:11.9]} 17. Kf1 {[%clk 0:01:04.6]} 17... dxc4 {[%clk 0:00:57.5]} 18. Nf4
{[%clk 0:01:05]} 18... Nc3 {[%clk 0:00:54.9]} 0-1

[Event "Early-Titled-Tuesday-Blitz-April-16-2024"]
[Site "Chess.com"]
[Date "2024.04.16"]
[Round "7"]
[White "Aragon"]
[Black "Felix-Rose"]
[Result "1-0"]
[WhiteElo "2068"]
[BlackElo "2187"]
[TimeControl "180+1"]
[EndTime "9:18:59 PDT"]
[Termination "Aragon won by checkmate"]

1. e4 {[%clk 0:03:00.9]} 1... e5 {[%clk 0:02:58.2]} 2. Nf3 {[%clk 0:03:00.4]}
2... Nc6 {[%clk 0:02:58.5]} 3. Nc3 {[%clk 0:03:01.3]} 3... Nf6 {[%clk
0:02:58.3]} 4. Be2 {[%clk 0:03:01.9]} 4... d5 {[%clk 0:02:57.5]} 5. exd5 {[%clk
0:03:01.6]} 5... Nxd5 {[%clk 0:02:57.9]} 6. O-O {[%clk 0:03:02.5]} 6... Nxc3
{[%clk 0:02:54.1]} 7. dxc3 {[%clk 0:03:02.5]} 7... Bd6 {[%clk 0:02:54.5]} 8. Bd3
{[%clk 0:03:01.5]} 8... O-O {[%clk 0:02:54.3]} 9. Ng5 {[%clk 0:03:01.4]} 9... h6
{[%clk 0:02:37.6]} 10. Qh5 {[%clk 0:02:58.9]} 10... Be7 {[%clk 0:01:40.7]} 11.
Nh7 {[%clk 0:02:56.7]} 11... Re8 {[%clk 0:01:24.1]} 12. Bxh6 {[%clk 0:02:52.5]}
12... gxh6 {[%clk 0:00:57.7]} 13. Qxh6 {[%clk 0:02:50.8]} 13... Qd6 {[%clk
0:00:37.8]} 14. Qh5 {[%clk 0:02:17.6]} 14... f5 {[%clk 0:00:18.3]} 15. Bc4+
{[%clk 0:02:08.7]} 15... Kg7 {[%clk 0:00:17.7]} 16. Qf7+ {[%clk 0:02:01.8]}
16... Kh6 {[%clk 0:00:17.7]} 17. Qxe8 {[%clk 0:01:52.2]} 17... Kxh7 {[%clk
0:00:17.6]} 18. Rad1 {[%clk 0:01:49.8]} 18... Qg6 {[%clk 0:00:17.4]} 19. Bf7
{[%clk 0:01:46.6]} 19... Qh6 {[%clk 0:00:15.5]} 20. Rd3 {[%clk 0:01:40]} 20...
f4 {[%clk 0:00:12.5]} 21. Qg8# {[%clk 0:01:38.9]} 1-0

[Event "Early-Titled-Tuesday-Blitz-April-16-2024"]
[Site "Chess.com"]
[Date "2024.04.16"]
[Round "7"]
[White "Heinza9"]
[Black "Silvederione"]
[Result "0-1"]
[WhiteElo "2327"]
[BlackElo "2508"]
[TimeControl "180+1"]
[EndTime "9:19:05 PDT"]
[Termination "Silvederione won by resignation"]

1. e4 {[%clk 0:03:00.9]} 1... c5 {[%clk 0:02:59.8]} 2. Nf3 {[%clk 0:03:00.6]}
2... Nc6 {[%clk 0:03:00.4]} 3. Bb5 {[%clk 0:03:00.3]} 3... e5 {[%clk 0:02:59.5]}
4. O-O {[%clk 0:02:59.8]} 4... d6 {[%clk 0:02:57.1]} 5. c3 {[%clk 0:02:59.7]}
5... a6 {[%clk 0:02:56]} 6. Bxc6+ {[%clk 0:02:58.9]} 6... bxc6 {[%clk
0:02:56.9]} 7. d4 {[%clk 0:02:59.2]} 7... cxd4 {[%clk 0:02:52.6]} 8. cxd4 {[%clk
0:02:59.4]} 8... exd4 {[%clk 0:02:48]} 9. Nxd4 {[%clk 0:02:56.6]} 9... Bd7
{[%clk 0:02:47.5]} 10. Nc3 {[%clk 0:02:56.4]} 10... Nf6 {[%clk 0:02:47.8]} 11.
Re1 {[%clk 0:02:56.2]} 11... Be7 {[%clk 0:02:48.3]} 12. e5 {[%clk 0:02:56.5]}
12... dxe5 {[%clk 0:02:49.2]} 13. Rxe5 {[%clk 0:02:56.4]} 13... O-O {[%clk
0:02:49.8]} 14. Bg5 {[%clk 0:02:46.3]} 14... h6 {[%clk 0:02:48.4]} 15. Bh4
{[%clk 0:02:43.5]} 15... Re8 {[%clk 0:02:35.5]} 16. Qf3 {[%clk 0:02:23.4]} 16...
Qb6 {[%clk 0:01:59.5]} 17. Rae1 {[%clk 0:01:42.3]} 17... Qxd4 {[%clk 0:01:55.3]}
18. Rxe7 {[%clk 0:01:42]} 18... Qxh4 {[%clk 0:01:49.1]} 19. g3 {[%clk
0:01:31.2]} 19... Qb4 {[%clk 0:01:44.1]} 20. a3 {[%clk 0:01:14.7]} 20... Qxb2
{[%clk 0:01:23.9]} 21. Na4 {[%clk 0:01:09.2]} 21... Qc2 {[%clk 0:01:08.9]} 22.
Nb6 {[%clk 0:01:04.9]} 22... Rxe7 {[%clk 0:00:57.4]} 23. Rxe7 {[%clk 0:01:02.4]}
23... Qb1+ {[%clk 0:00:56.5]} 24. Kg2 {[%clk 0:01:02.7]} 24... Qxb6 {[%clk
0:00:56.7]} 0-1